[Event "*** Titled Tuesday Blitz"]
[Site "Chess.com"]
[Date "2019.08.06"]
[Round "6"]
[White "FredddieCroderg"]
[Black "maciek_92"]
[Result "0-1"]
[WhiteElo "2159"]
[BlackElo "2749"]
[TimeControl "180+2"]
[EndTime "14:18:43 PDT"]
[Termination "maciek_92 won by resignation"]

1. d4 {[%clk 0:03:01.9]} 1... f5 {[%clk 0:02:59]} 2. Bg5 {[%clk 0:02:46.6]} 2...
g6 {[%clk 0:02:59.6]} 3. Nc3 {[%clk 0:02:45.9]} 3... Bg7 {[%clk 0:03:00]} 4. e4
{[%clk 0:02:44.8]} 4... fxe4 {[%clk 0:03:01.9]} 5. Nxe4 {[%clk 0:02:45.6]} 5...
d5 {[%clk 0:03:03.8]} 6. Ng3 {[%clk 0:02:46.3]} 6... c5 {[%clk 0:03:04.4]} 7.
Nf3 {[%clk 0:02:43.9]} 7... Nc6 {[%clk 0:03:04.9]} 8. Bb5 {[%clk 0:02:42.5]}
8... Qa5+ {[%clk 0:03:03.6]} 9. c3 {[%clk 0:02:38]} 9... Qxb5 {[%clk 0:03:05.5]}
10. dxc5 {[%clk 0:02:36.3]} 10... Qxc5 {[%clk 0:03:01]} 11. O-O {[%clk
0:02:35.8]} 11... Nf6 {[%clk 0:02:50.8]} 12. Re1 {[%clk 0:02:36]} 12... O-O
{[%clk 0:02:51.3]} 13. Qb3 {[%clk 0:02:32.4]} 13... e5 {[%clk 0:02:48.1]} 14.
Rad1 {[%clk 0:02:23.4]} 14... Be6 {[%clk 0:02:43.6]} 15. Be3 {[%clk 0:02:17.4]}
15... Qe7 {[%clk 0:02:41.9]} 16. Ng5 {[%clk 0:02:17.4]} 16... Rad8 {[%clk
0:02:36.1]} 17. Nxe6 {[%clk 0:02:16.8]} 17... Qxe6 {[%clk 0:02:38]} 18. Bc5
{[%clk 0:02:17]} 18... Rf7 {[%clk 0:02:35.6]} 19. f4 {[%clk 0:01:56.7]} 19... e4
{[%clk 0:02:35.8]} 20. Kh1 {[%clk 0:01:45.7]} 20... b6 {[%clk 0:02:36.9]} 21.
Bg1 {[%clk 0:01:44.3]} 21... h5 {[%clk 0:02:38.3]} 22. Nf1 {[%clk 0:01:31]}
22... h4 {[%clk 0:02:39.7]} 23. Ne3 {[%clk 0:01:30.3]} 23... Ne7 {[%clk
0:02:41.3]} 24. Nc2 {[%clk 0:01:29]} 24... Nf5 {[%clk 0:02:42.7]} 25. Qa3 {[%clk
0:01:26.6]} 25... Bf8 {[%clk 0:02:44.1]} 26. Qa4 {[%clk 0:01:26.5]} 26... Rh7
{[%clk 0:02:45]} 27. Nb4 {[%clk 0:01:21.1]} 27... Ng3+ {[%clk 0:02:45.8]} 28.
hxg3 {[%clk 0:01:19.4]} 28... hxg3+ {[%clk 0:02:47.7]} 29. Bh2 {[%clk
0:01:20.5]} 29... Rxh2+ {[%clk 0:02:49.6]} 30. Kg1 {[%clk 0:01:21.7]} 30... Bc5+
{[%clk 0:02:51.5]} 31. Kf1 {[%clk 0:01:22.2]} 31... Qg4 {[%clk 0:02:52.7]} 0-1

[Event "*** Titled Tuesday Blitz"]
[Site "Chess.com"]
[Date "2019.08.06"]
[Round "6"]
[White "julinha97"]
[Black "chessbia"]
[Result "1-0"]
[WhiteElo "2232"]
[BlackElo "2237"]
[TimeControl "180+2"]
[EndTime "14:19:03 PDT"]
[Termination "julinha97 won by resignation"]

1. e4 {[%clk 0:03:01.9]} 1... c6 {[%clk 0:02:37.6]} 2. d4 {[%clk 0:03:01.3]}
2... d5 {[%clk 0:02:38.4]} 3. exd5 {[%clk 0:03:03.2]} 3... cxd5 {[%clk
0:02:39.1]} 4. c4 {[%clk 0:03:05]} 4... Nc6 {[%clk 0:02:41]} 5. Nc3 {[%clk
0:03:05.9]} 5... Nf6 {[%clk 0:02:40.9]} 6. Bg5 {[%clk 0:03:06.5]} 6... e6 {[%clk
0:02:35.5]} 7. Nf3 {[%clk 0:03:07.1]} 7... Bb4 {[%clk 0:02:34.8]} 8. cxd5 {[%clk
0:03:02.6]} 8... exd5 {[%clk 0:02:35]} 9. Bd3 {[%clk 0:02:57]} 9... O-O {[%clk
0:02:28.9]} 10. O-O {[%clk 0:02:57.7]} 10... Bg4 {[%clk 0:02:29.2]} 11. Bxf6
{[%clk 0:02:57.2]} 11... Qxf6 {[%clk 0:02:18.6]} 12. Nxd5 {[%clk 0:02:57.2]}
12... Qh6 {[%clk 0:02:07.5]} 13. Nxb4 {[%clk 0:02:55.2]} 13... Nxb4 {[%clk
0:02:07.1]} 14. Be2 {[%clk 0:02:53]} 14... Rad8 {[%clk 0:02:06.1]} 15. h3 {[%clk
0:02:52.8]} 15... Bxh3 {[%clk 0:01:51.3]} 16. gxh3 {[%clk 0:02:53.5]} 16... Qxh3
{[%clk 0:01:52]} 17. Nh2 {[%clk 0:02:53.2]} 17... Rd6 {[%clk 0:01:46.8]} 18. Bg4
{[%clk 0:02:53.9]} 18... Rg6 {[%clk 0:01:41.1]} 19. Kh1 {[%clk 0:02:48]} 19...
Qh4 {[%clk 0:01:40.8]} 20. Qf3 {[%clk 0:02:44.4]} 20... f5 {[%clk 0:01:29.8]}
21. Qb3+ {[%clk 0:02:18.2]} 21... Rf7 {[%clk 0:01:19]} 22. Rae1 {[%clk
0:02:13.3]} 22... Kf8 {[%clk 0:01:01.4]} 23. Qxb4+ {[%clk 0:02:12.6]} 1-0

[Event "*** Titled Tuesday Blitz"]
[Site "Chess.com"]
[Date "2019.08.06"]
[Round "6"]
[White "Shahinyan_ChessMood"]
[Black "qqwow"]
[Result "1-0"]
[WhiteElo "2759"]
[BlackElo "2539"]
[TimeControl "180+2"]
[EndTime "14:19:07 PDT"]
[Termination "Shahinyan_ChessMood won by resignation"]

1. e4 {[%clk 0:03:01.9]} 1... c5 {[%clk 0:03:00.2]} 2. Nc3 {[%clk 0:03:02]} 2...
Nc6 {[%clk 0:02:59.4]} 3. Bb5 {[%clk 0:03:02.3]} 3... g6 {[%clk 0:02:55.5]} 4.
Bxc6 {[%clk 0:02:57.5]} 4... dxc6 {[%clk 0:02:56.4]} 5. f4 {[%clk 0:02:58.3]}
5... Bg7 {[%clk 0:02:56]} 6. Nf3 {[%clk 0:02:57.6]} 6... Bg4 {[%clk 0:02:55.7]}
7. d3 {[%clk 0:02:57.5]} 7... Nf6 {[%clk 0:02:53.8]} 8. O-O {[%clk 0:02:57.8]}
8... Qc7 {[%clk 0:02:34.1]} 9. Be3 {[%clk 0:02:53.5]} 9... b6 {[%clk 0:02:34.2]}
10. Qe1 {[%clk 0:02:53.8]} 10... Bxf3 {[%clk 0:02:34.6]} 11. Rxf3 {[%clk
0:02:54.5]} 11... Ng4 {[%clk 0:02:32.3]} 12. Bd2 {[%clk 0:02:55.4]} 12... O-O-O
{[%clk 0:02:20.1]} 13. h3 {[%clk 0:02:52.7]} 13... Nf6 {[%clk 0:02:15.8]} 14. a3
{[%clk 0:02:53.2]} 14... h5 {[%clk 0:02:16.1]} 15. b4 {[%clk 0:02:53.1]} 15...
Nd7 {[%clk 0:02:10.8]} 16. e5 {[%clk 0:02:50.1]} 16... cxb4 {[%clk 0:01:51.2]}
17. axb4 {[%clk 0:02:49.7]} 17... Kb7 {[%clk 0:01:51]} 18. b5 {[%clk 0:02:46.7]}
18... Nb8 {[%clk 0:01:47.3]} 19. Re3 {[%clk 0:02:34.4]} 19... e6 {[%clk
0:01:46.9]} 20. Re4 {[%clk 0:02:35.5]} 20... Bf8 {[%clk 0:01:24]} 21. Rea4
{[%clk 0:02:34.5]} 21... a5 {[%clk 0:01:25.1]} 22. bxa6+ {[%clk 0:02:28.6]}
22... Ka7 {[%clk 0:01:26.2]} 23. Be3 {[%clk 0:02:29.1]} 23... Nd7 {[%clk
0:01:09.1]} 24. Rc4 {[%clk 0:02:22.9]} 24... Bc5 {[%clk 0:01:04.3]} 25. d4
{[%clk 0:02:22.6]} 25... Be7 {[%clk 0:01:05.4]} 26. Nb5+ {[%clk 0:02:22.4]} 1-0

[Event "*** Titled Tuesday Blitz"]
[Site "Chess.com"]
[Date "2019.08.06"]
[Round "6"]
[White "Drags95"]
[Black "Samantha_Ross"]
[Result "1-0"]
[WhiteElo "2826"]
[BlackElo "2097"]
[TimeControl "180+2"]
[EndTime "14:19:47 PDT"]
[Termination "Drags95 won by resignation"]

1. c4 {[%clk 0:03:01.9]} 1... c5 {[%clk 0:03:00.9]} 2. Nc3 {[%clk 0:02:47.3]}
2... b6 {[%clk 0:03:01.1]} 3. Nf3 {[%clk 0:02:48.4]} 3... Bb7 {[%clk 0:03:02.1]}
4. d4 {[%clk 0:02:49.9]} 4... cxd4 {[%clk 0:03:03.4]} 5. Nxd4 {[%clk 0:02:49.7]}
5... Nf6 {[%clk 0:03:03.6]} 6. f3 {[%clk 0:02:49.6]} 6... d6 {[%clk 0:03:03]} 7.
e4 {[%clk 0:02:50.4]} 7... a6 {[%clk 0:03:04.3]} 8. Be3 {[%clk 0:02:51.8]} 8...
e6 {[%clk 0:03:04.7]} 9. Be2 {[%clk 0:02:53.3]} 9... Be7 {[%clk 0:03:05.9]} 10.
O-O {[%clk 0:02:54.9]} 10... Qc7 {[%clk 0:03:07.2]} 11. Qd2 {[%clk 0:02:54.3]}
11... Nbd7 {[%clk 0:03:08.3]} 12. Rfc1 {[%clk 0:02:50.2]} 12... O-O {[%clk
0:03:08.6]} 13. a4 {[%clk 0:02:51.8]} 13... Rfe8 {[%clk 0:03:03.2]} 14. a5
{[%clk 0:02:52.7]} 14... bxa5 {[%clk 0:03:00.2]} 15. Nb3 {[%clk 0:02:53.6]}
15... Rab8 {[%clk 0:02:49.2]} 16. Nxa5 {[%clk 0:02:54.3]} 16... Ba8 {[%clk
0:02:49.9]} 17. b4 {[%clk 0:02:51.4]} 17... Rxb4 {[%clk 0:02:37]} 18. Nb5 {[%clk
0:02:36.6]} 18... axb5 {[%clk 0:02:28.6]} 19. cxb5 {[%clk 0:02:32.5]} 19... Nc5
{[%clk 0:01:29.1]} 20. Qxb4 {[%clk 0:02:13.4]} 20... Rb8 {[%clk 0:01:21.2]} 21.
Nc4 {[%clk 0:02:02.4]} 21... Bc6 {[%clk 0:01:17.1]} 22. b6 {[%clk 0:01:56.1]}
22... Qd7 {[%clk 0:01:14.6]} 23. Bxc5 {[%clk 0:01:55.6]} 23... dxc5 {[%clk
0:01:15.4]} 24. Qc3 {[%clk 0:01:55.9]} 24... Nxe4 {[%clk 0:00:52.6]} 25. fxe4
{[%clk 0:01:55.2]} 25... Bxe4 {[%clk 0:00:51.5]} 26. Qe5 {[%clk 0:01:54.7]}
26... Rxb6 {[%clk 0:00:44.7]} 1-0

[Event "*** Titled Tuesday Blitz"]
[Site "Chess.com"]
[Date "2019.08.06"]
[Round "6"]
[White "Caisachess"]
[Black "NemtsevIgor"]
[Result "1-0"]
[WhiteElo "2315"]
[BlackElo "2312"]
[TimeControl "180+2"]
[EndTime "14:19:52 PDT"]
[Termination "Caisachess won by checkmate"]

1. e4 {[%clk 0:03:01.9]} 1... c6 {[%clk 0:03:00.3]} 2. Nc3 {[%clk 0:02:59.8]}
2... d5 {[%clk 0:03:01.3]} 3. Nf3 {[%clk 0:03:01.2]} 3... Bg4 {[%clk 0:03:01.5]}
4. h3 {[%clk 0:02:59]} 4... Bh5 {[%clk 0:03:02.5]} 5. g4 {[%clk 0:02:57.4]} 5...
Bg6 {[%clk 0:03:03]} 6. Ne5 {[%clk 0:02:57.5]} 6... d4 {[%clk 0:02:53.1]} 7.
Nxg6 {[%clk 0:02:57.2]} 7... hxg6 {[%clk 0:02:52.7]} 8. Ne2 {[%clk 0:02:56.3]}
8... e5 {[%clk 0:02:46.9]} 9. d3 {[%clk 0:02:54.2]} 9... c5 {[%clk 0:02:46.8]}
10. Bg2 {[%clk 0:02:55.4]} 10... Nc6 {[%clk 0:02:47.3]} 11. O-O {[%clk
0:02:54.7]} 11... Bd6 {[%clk 0:02:47.7]} 12. f4 {[%clk 0:02:54.4]} 12... exf4
{[%clk 0:02:45.9]} 13. Bxf4 {[%clk 0:02:53]} 13... Bxf4 {[%clk 0:02:41.8]} 14.
Nxf4 {[%clk 0:02:54.1]} 14... Ne5 {[%clk 0:02:33.6]} 15. Nd5 {[%clk 0:02:24.8]}
15... Nf6 {[%clk 0:02:32.9]} 16. Qd2 {[%clk 0:02:23.6]} 16... Nfxg4 {[%clk
0:02:12.6]} 17. hxg4 {[%clk 0:02:18.9]} 17... Qh4 {[%clk 0:02:13.3]} 18. Qf4
{[%clk 0:02:17.3]} 18... f6 {[%clk 0:02:04.6]} 19. Nc7+ {[%clk 0:01:53.5]} 19...
Kd7 {[%clk 0:02:05.1]} 20. Nxa8 {[%clk 0:01:52.2]} 20... g5 {[%clk 0:01:57]} 21.
Qf5+ {[%clk 0:01:52.1]} 21... Kd6 {[%clk 0:01:50]} 22. Rf3 {[%clk 0:01:38.6]}
22... Nxf3+ {[%clk 0:01:26.8]} 23. Qxf3 {[%clk 0:01:37.3]} 23... Rxa8 {[%clk
0:01:25.1]} 24. e5+ {[%clk 0:01:37.5]} 24... Kxe5 {[%clk 0:01:11.5]} 25. Qd5+
{[%clk 0:01:34.5]} 25... Kf4 {[%clk 0:01:12.1]} 26. Qe4+ {[%clk 0:01:34.2]}
26... Kg3 {[%clk 0:01:12.7]} 27. Qf3# {[%clk 0:01:35.3]} 1-0

[Event "*** Titled Tuesday Blitz"]
[Site "Chess.com"]
[Date "2019.08.06"]
[Round "6"]
[White "pandamaster3000"]
[Black "LuisFSiles"]
[Result "1/2-1/2"]
[WhiteElo "2301"]
[BlackElo "2201"]
[TimeControl "180+2"]
[EndTime "14:19:53 PDT"]
[Termination "Game drawn by repetition"]

1. e4 {[%clk 0:03:01.9]} 1... e5 {[%clk 0:02:58.2]} 2. Nf3 {[%clk 0:03:03.1]}
2... Nc6 {[%clk 0:02:59.1]} 3. Bb5 {[%clk 0:03:04.6]} 3... a6 {[%clk 0:02:59.2]}
4. Ba4 {[%clk 0:03:06.2]} 4... Nf6 {[%clk 0:03:00.1]} 5. d4 {[%clk 0:03:07.7]}
5... exd4 {[%clk 0:02:58.9]} 6. O-O {[%clk 0:03:08.4]} 6... Be7 {[%clk 0:02:59]}
7. Re1 {[%clk 0:03:09.7]} 7... O-O {[%clk 0:02:58.2]} 8. e5 {[%clk 0:03:09.9]}
8... Nd5 {[%clk 0:02:56.2]} 9. Nxd4 {[%clk 0:03:09.8]} 9... Nb6 {[%clk
0:02:51.7]} 10. Bb3 {[%clk 0:03:09.5]} 10... d5 {[%clk 0:02:49]} 11. exd6 {[%clk
0:03:03.2]} 11... Bxd6 {[%clk 0:02:41.9]} 12. Nxc6 {[%clk 0:03:03.1]} 12... bxc6
{[%clk 0:02:40.9]} 13. Nd2 {[%clk 0:02:41.9]} 13... Qh4 {[%clk 0:02:20.8]} 14.
h3 {[%clk 0:02:09.5]} 14... Bxh3 {[%clk 0:01:34.4]} 15. gxh3 {[%clk 0:02:10]}
15... Qxh3 {[%clk 0:01:36.3]} 16. Qf3 {[%clk 0:01:46.1]} 16... Bh2+ {[%clk
0:01:06.1]} 17. Kh1 {[%clk 0:01:47]} 17... Bg3+ {[%clk 0:01:04.5]} 18. Kg1
{[%clk 0:01:46.8]} 18... Bh2+ {[%clk 0:00:15.6]} 19. Kh1 {[%clk 0:01:48]} 19...
Bg3+ {[%clk 0:00:17.5]} 20. Kg1 {[%clk 0:01:49.4]} 20... Bh2+ {[%clk 0:00:14]}
1/2-1/2

[Event "*** Titled Tuesday Blitz"]
[Site "Chess.com"]
[Date "2019.08.06"]
[Round "6"]
[White "bluejay1897"]
[Black "DiogenesSinopeus"]
[Result "1-0"]
[WhiteElo "2292"]
[BlackElo "2379"]
[TimeControl "180+2"]
[EndTime "14:19:54 PDT"]
[Termination "bluejay1897 won by resignation"]

1. Nf3 {[%clk 0:03:01.9]} 1... Nf6 {[%clk 0:03:01]} 2. g3 {[%clk 0:03:02.3]}
2... d5 {[%clk 0:03:01.6]} 3. Bg2 {[%clk 0:03:02.7]} 3... Bf5 {[%clk 0:03:02.2]}
4. O-O {[%clk 0:03:02.8]} 4... e6 {[%clk 0:03:03.4]} 5. c4 {[%clk 0:03:03.3]}
5... c6 {[%clk 0:03:03.6]} 6. b3 {[%clk 0:03:02.2]} 6... Nbd7 {[%clk 0:03:01.2]}
7. Bb2 {[%clk 0:03:03.5]} 7... h6 {[%clk 0:03:02]} 8. d3 {[%clk 0:03:01.9]} 8...
Bh7 {[%clk 0:02:59.3]} 9. Nc3 {[%clk 0:03:02.7]} 9... Be7 {[%clk 0:02:58.4]} 10.
Re1 {[%clk 0:03:02.7]} 10... O-O {[%clk 0:02:57.3]} 11. Rc1 {[%clk 0:03:00.2]}
11... a5 {[%clk 0:02:56.2]} 12. cxd5 {[%clk 0:02:56.9]} 12... exd5 {[%clk
0:02:43]} 13. e4 {[%clk 0:02:42.5]} 13... dxe4 {[%clk 0:02:43.9]} 14. dxe4
{[%clk 0:02:43.2]} 14... Bb4 {[%clk 0:02:45.1]} 15. e5 {[%clk 0:02:39.2]} 15...
Bxc3 {[%clk 0:02:37.5]} 16. Bxc3 {[%clk 0:02:37.6]} 16... Nd5 {[%clk 0:02:38.6]}
17. Nd4 {[%clk 0:02:19.3]} 17... Nxc3 {[%clk 0:02:24.8]} 18. Rxc3 {[%clk
0:02:19.1]} 18... Re8 {[%clk 0:02:12.5]} 19. e6 {[%clk 0:02:11.5]} 19... fxe6
{[%clk 0:02:13]} 20. Nxe6 {[%clk 0:02:12.1]} 20... Qf6 {[%clk 0:01:54]} 21. Rce3
{[%clk 0:01:29.6]} 21... Nf8 {[%clk 0:01:47.7]} 22. Bh3 {[%clk 0:01:08.9]} 22...
Bf5 {[%clk 0:01:27.5]} 23. Bxf5 {[%clk 0:01:06.2]} 23... Qxf5 {[%clk 0:01:28.5]}
24. Nxg7 {[%clk 0:01:06]} 1-0

[Event "*** Titled Tuesday Blitz"]
[Site "Chess.com"]
[Date "2019.08.06"]
[Round "6"]
[White "Er_is_geen_hoop_meer"]
[Black "nocnypako"]
[Result "0-1"]
[WhiteElo "2368"]
[BlackElo "2586"]
[TimeControl "180+2"]
[EndTime "14:19:55 PDT"]
[Termination "nocnypako won on time"]

1. b4 {[%clk 0:02:18.3]} 1... b6 {[%clk 0:02:58]} 2. Bb2 {[%clk 0:02:19.2]} 2...
Bb7 {[%clk 0:02:59.6]} 3. Nc3 {[%clk 0:02:19.1]} 3... Nf6 {[%clk 0:02:59.5]} 4.
e3 {[%clk 0:02:17]} 4... e5 {[%clk 0:03:00.1]} 5. a3 {[%clk 0:02:17.8]} 5... d5
{[%clk 0:03:01]} 6. Nf3 {[%clk 0:02:19.3]} 6... e4 {[%clk 0:03:01]} 7. Nd4
{[%clk 0:02:20.5]} 7... g6 {[%clk 0:02:59.6]} 8. h4 {[%clk 0:02:20.3]} 8... Bg7
{[%clk 0:02:58.3]} 9. h5 {[%clk 0:02:21.2]} 9... Nxh5 {[%clk 0:02:57.9]} 10.
Rxh5 {[%clk 0:02:23.1]} 10... gxh5 {[%clk 0:02:59.3]} 11. Nf5 {[%clk 0:02:24.5]}
11... Bf6 {[%clk 0:02:52.5]} 12. Qxh5 {[%clk 0:02:23.5]} 12... Nd7 {[%clk
0:02:49.6]} 13. O-O-O {[%clk 0:02:19.7]} 13... Ne5 {[%clk 0:02:41.7]} 14. d3
{[%clk 0:02:20.9]} 14... exd3 {[%clk 0:02:39.3]} 15. Bxd3 {[%clk 0:02:22.8]}
15... Nxd3+ {[%clk 0:02:32.8]} 16. Rxd3 {[%clk 0:02:24.7]} 16... Qd7 {[%clk
0:01:54]} 17. e4 {[%clk 0:02:02.5]} 17... O-O-O {[%clk 0:01:51.7]} 0-1

[Event "*** Titled Tuesday Blitz"]
[Site "Chess.com"]
[Date "2019.08.06"]
[Round "6"]
[White "vlad_Sid"]
[Black "platy3"]
[Result "0-1"]
[WhiteElo "2589"]
[BlackElo "2870"]
[TimeControl "180+2"]
[EndTime "14:20:05 PDT"]
[Termination "platy3 won by resignation"]

1. c4 {[%clk 0:03:01.9]} 1... c5 {[%clk 0:02:49.8]} 2. g3 {[%clk 0:03:01.6]}
2... Nc6 {[%clk 0:02:50.5]} 3. Bg2 {[%clk 0:03:03.5]} 3... g6 {[%clk 0:02:52.2]}
4. Nc3 {[%clk 0:03:04.3]} 4... Bg7 {[%clk 0:02:53.5]} 5. a3 {[%clk 0:03:05.2]}
5... e6 {[%clk 0:02:51.4]} 6. b4 {[%clk 0:03:00]} 6... d6 {[%clk 0:02:45.3]} 7.
Rb1 {[%clk 0:02:57]} 7... Nge7 {[%clk 0:02:45.3]} 8. Nf3 {[%clk 0:02:56.5]} 8...
O-O {[%clk 0:02:45.9]} 9. O-O {[%clk 0:02:57.9]} 9... b6 {[%clk 0:02:47]} 10.
Qc2 {[%clk 0:02:47.2]} 10... Bb7 {[%clk 0:02:47]} 11. e3 {[%clk 0:02:45.4]}
11... Rc8 {[%clk 0:02:43.8]} 12. b5 {[%clk 0:02:43.2]} 12... Na5 {[%clk
0:02:44.5]} 13. d3 {[%clk 0:02:41.8]} 13... d5 {[%clk 0:02:44.3]} 14. Rd1 {[%clk
0:02:30.3]} 14... dxc4 {[%clk 0:02:40.2]} 15. dxc4 {[%clk 0:02:32.2]} 15... Qc7
{[%clk 0:02:41.7]} 16. Ne4 {[%clk 0:02:23.3]} 16... Rcd8 {[%clk 0:02:29.1]} 17.
Rxd8 {[%clk 0:01:49.8]} 17... Rxd8 {[%clk 0:02:29.3]} 18. Bd2 {[%clk 0:01:51.2]}
18... h6 {[%clk 0:02:15.4]} 19. h3 {[%clk 0:01:15.2]} 19... f5 {[%clk
0:01:58.8]} 20. Nc3 {[%clk 0:01:13.5]} 20... Nxc4 {[%clk 0:01:59.3]} 21. Bc1
{[%clk 0:01:11.5]} 21... Ne5 {[%clk 0:01:59.8]} 22. Nxe5 {[%clk 0:01:04.2]}
22... Bxe5 {[%clk 0:02:00.3]} 23. Ne2 {[%clk 0:01:00.3]} 23... Bxg2 {[%clk
0:02:00.4]} 24. Kxg2 {[%clk 0:01:02.2]} 24... Qb7+ {[%clk 0:02:02]} 25. f3
{[%clk 0:01:03.5]} 25... Qd5 {[%clk 0:02:00.8]} 26. Bb2 {[%clk 0:01:02.7]} 26...
Qd2 {[%clk 0:01:55]} 27. Qxd2 {[%clk 0:00:45.1]} 27... Rxd2 {[%clk 0:01:56.9]}
28. Bxe5 {[%clk 0:00:46.7]} 28... Rxe2+ {[%clk 0:01:57.8]} 29. Kf1 {[%clk
0:00:48.3]} 29... Rxe3 {[%clk 0:01:59.7]} 30. Bb8 {[%clk 0:00:46.3]} 30... Rxf3+
{[%clk 0:02:00.8]} 31. Kg2 {[%clk 0:00:46.6]} 31... Rxa3 {[%clk 0:02:02.7]} 32.
Re1 {[%clk 0:00:47.7]} 32... Kf7 {[%clk 0:02:03.4]} 0-1

[Event "*** Titled Tuesday Blitz"]
[Site "Chess.com"]
[Date "2019.08.06"]
[Round "6"]
[White "Rakesh"]
[Black "Alopekos"]
[Result "1-0"]
[WhiteElo "2443"]
[BlackElo "2479"]
[TimeControl "180+2"]
[EndTime "14:20:12 PDT"]
[Termination "Rakesh won on time"]

1. e4 {[%clk 0:03:01.9]} 1... e5 {[%clk 0:03:00.5]} 2. d4 {[%clk 0:03:02.5]}
2... exd4 {[%clk 0:03:00.8]} 3. Qxd4 {[%clk 0:03:03.5]} 3... Nc6 {[%clk
0:03:00.1]} 4. Qe3 {[%clk 0:03:05.4]} 4... Nf6 {[%clk 0:02:07]} 5. Nc3 {[%clk
0:03:07.3]} 5... Bb4 {[%clk 0:02:06.2]} 6. Bd2 {[%clk 0:03:09.2]} 6... O-O
{[%clk 0:02:06.4]} 7. O-O-O {[%clk 0:03:11.1]} 7... Re8 {[%clk 0:02:07.9]} 8.
Qg3 {[%clk 0:03:13]} 8... Rxe4 {[%clk 0:01:49.8]} 9. f3 {[%clk 0:03:11.7]} 9...
Re8 {[%clk 0:01:41.4]} 10. Bd3 {[%clk 0:03:08.6]} 10... Ne5 {[%clk 0:01:41.2]}
11. f4 {[%clk 0:02:37.6]} 11... Nxd3+ {[%clk 0:01:33]} 12. Qxd3 {[%clk 0:02:39]}
12... d6 {[%clk 0:01:20.1]} 13. Nf3 {[%clk 0:02:39.1]} 13... Bg4 {[%clk
0:01:04.2]} 14. Rde1 {[%clk 0:02:38.8]} 14... Qd7 {[%clk 0:01:04.4]} 15. a3
{[%clk 0:02:24.5]} 15... Bc5 {[%clk 0:01:03.3]} 16. h3 {[%clk 0:02:17.3]} 16...
Bf5 {[%clk 0:01:04.1]} 17. Qc4 {[%clk 0:02:17.2]} 17... Be6 {[%clk 0:00:21.4]}
18. Qd3 {[%clk 0:02:11.3]} 18... Qc6 {[%clk 0:00:10.8]} 19. f5 {[%clk 0:02:05]}
19... Bd7 {[%clk 0:00:08.9]} 20. Bg5 {[%clk 0:02:04]} 20... Nh5 {[%clk
0:00:03.4]} 21. f6 {[%clk 0:02:01.4]} 21... g6 {[%clk 0:00:02.6]} 22. Nd5 {[%clk
0:02:00.2]} 1-0

[Event "*** Titled Tuesday Blitz"]
[Site "Chess.com"]
[Date "2019.08.06"]
[Round "6"]
[White "Chopper1905"]
[Black "biostatistician"]
[Result "1-0"]
[WhiteElo "2830"]
[BlackElo "2549"]
[TimeControl "180+2"]
[EndTime "14:20:18 PDT"]
[Termination "Chopper1905 won by resignation"]

1. e4 {[%clk 0:03:01.9]} 1... e6 {[%clk 0:03:00.8]} 2. Qe2 {[%clk 0:03:02.3]}
2... d5 {[%clk 0:03:02.7]} 3. exd5 {[%clk 0:03:04]} 3... Nf6 {[%clk 0:03:03.1]}
4. dxe6 {[%clk 0:03:04.6]} 4... Bxe6 {[%clk 0:03:05]} 5. Nf3 {[%clk 0:03:05.6]}
5... Be7 {[%clk 0:03:06.4]} 6. Qb5+ {[%clk 0:03:05.7]} 6... Nc6 {[%clk
0:03:06.1]} 7. Qxb7 {[%clk 0:03:06.3]} 7... Nb4 {[%clk 0:03:00.6]} 8. Na3 {[%clk
0:03:04.3]} 8... O-O {[%clk 0:02:59.6]} 9. Be2 {[%clk 0:03:03.8]} 9... Bc5
{[%clk 0:02:27.6]} 10. Qb5 {[%clk 0:02:56.6]} 10... Ne4 {[%clk 0:02:23.3]} 11.
d4 {[%clk 0:02:48.5]} 11... Rb8 {[%clk 0:02:14.1]} 12. Qa4 {[%clk 0:02:44.9]}
12... Bxd4 {[%clk 0:02:11.4]} 13. Nxd4 {[%clk 0:02:44.6]} 13... Qxd4 {[%clk
0:02:13.3]} 14. O-O {[%clk 0:02:45.6]} 14... Nc5 {[%clk 0:01:32]} 15. Qxa7
{[%clk 0:02:43.8]} 15... Rb7 {[%clk 0:01:22.3]} 16. Be3 {[%clk 0:02:29]} 16...
Qxb2 {[%clk 0:00:45.9]} 17. Qxc5 {[%clk 0:02:06.3]} 17... Qxa3 {[%clk
0:00:46.1]} 18. c3 {[%clk 0:02:01.8]} 18... Nc2 {[%clk 0:00:46.4]} 19. Qxa3
{[%clk 0:02:03.7]} 19... Nxa3 {[%clk 0:00:48.2]} 20. Bc5 {[%clk 0:02:03.2]}
20... Nc2 {[%clk 0:00:24.8]} 21. Rac1 {[%clk 0:02:02.2]} 21... Rb2 {[%clk
0:00:17.9]} 22. Bxf8 {[%clk 0:01:59.3]} 22... Kxf8 {[%clk 0:00:18.1]} 23. a4
{[%clk 0:01:58.8]} 23... Ra2 {[%clk 0:00:19.2]} 24. Bd3 {[%clk 0:01:57.7]} 24...
Na3 {[%clk 0:00:18.3]} 25. Ra1 {[%clk 0:01:59.2]} 1-0